Cogmind - Beta 15 @@@ ROGUE MODE // 2025.10.12 @ 20:50:22 Player: DietSnapple Result: Destroyed by Y-45 Defender with Heavy Assault Rifle Performance ------------- Evolutions (0) 0 Regions Visited (3) 600 Robots Destroyed (26) 130 Value Destroyed (701) 701 Prototype IDs (1) 20 Alien Tech Used (0) 0 Bonus (0) 0 TOTAL SCORE: 1451 Bonus ------- None Cogmind --------- Core Integrity 0/250 Matter 101/300 Energy 100/100 System Corruption 5% Temperature Cool (0) Movement Rolling (175) Ox5 Location -10/Subcaves Parts ------- > --- POWER (1) -------- (None) > --- PROPULSION (2) --- Compact Wheel > --- UTILITY (2) ------ Huge Storage Unit > --- WEAPON (2) ------- EM Shotgun Grenade Launcher > --- INVENTORY (25) --- Light Nuclear Core Light Treads Aluminum Leg Aluminum Leg Heat Sink Disposable Heat Sink Disposable Heat Sink Small Storage Unit Structural Scanner Experimental Sensor Array Makeshift Kinetic Plating Beam Cannon Subdweller Beam Cannon Assault Rifle Assault Rifle Light Assault Rifle Battle Rifle Barrage Gun Grenade Launcher Flail Peak State ------------ > --- POWER ------------ Light Nuclear Core > --- PROPULSION ------- Wheel Wheel > --- UTILITY ---------- Huge Storage Unit Experimental Sensor Array > --- WEAPON ----------- EM Shotgun EM Shotgun > --- INVENTORY -------- Light Ion Engine Light Nuclear Core Light Treads Aluminum Leg Aluminum Leg Compact Wheel Compact Wheel Heat Sink Improved Heat Sink Disposable Heat Sink Disposable Heat Sink Small Storage Unit Structural Scanner EM Shotgun EM Shotgun Beam Cannon Assault Rifle Assault Rifle Light Assault Rifle Grenade Launcher Grenade Launcher Flail [Rating: 22] Favorites ----------- Power Light Nuclear Core Engine Light Ion Engine Power Core Light Nuclear Core Propulsion Wheel Treads Light Treads Wheel Wheel Utility Huge Storage Unit Device Improved Heat Sink Storage Huge Storage Unit Weapon EM Shotgun Energy Gun EM Shotgun Ballistic Gun Assault Rifle Launcher Grenade Launcher Impact Weapon Flail Build | -11 -10 -10 -10 ------- Run | Yrd Mat Min Sub Slots Evolved . | . . . . Power . | . . . . Propulsion . | . . . . Utility . | . . . . Weapon . | . . . . Parts Attached 27 | 6 10 1 10 Power 4 | 1 2 . 1 Engine 2 | 1 . . 1 Core 2 | . 2 . . Reactor . | . . . . Propulsion 7 | 2 3 . 2 Treads 2 | 2 . . . Leg . | . . . . Wheel 5 | . 3 . 2 Hover . | . . . . Flight . | . . . . Utility 6 | 1 3 1 1 Device 4 | . 2 1 1 Storage 2 | 1 1 . . Processor . | . . . . Hackware . | . . . . Protection . | . . . . Artifact . | . . . . Weapon 10 | 2 2 . 6 Energy Gun 6 | 2 . . 4 Energy Cannon . | . . . . Ballistic Gun 2 | . 2 . . Ballistic Cannon . | . . . . Launcher 1 | . . . 1 Special Weapon . | . . . . Impact Weapon 1 | . . . 1 Slashing Weapon . | . . . . Piercing Weapon . | . . . . Special Melee Weapon . | . . . . Unidentified Prototypes 1 | . . 1 . Parts Lost 10 | . . 1 9 Power 2 | . . . 2 Propulsion 4 | . . 1 3 Utility 1 | . . . 1 Weapon 3 | . . . 3 Highest Loss Streak 3 | . . 1 3 To Critical Strikes . | . . . . Average Backups 16 | 2 10 21 21 Power 1 | . 1 2 1 Propulsion 3 | 1 3 5 3 Utility 4 | . 1 5 6 Weapon 6 | . 4 9 9 Tool/Special . | . . . . Unused Backups 13 | . . . 13 Power . | . . . . Propulsion 3 | . . . 3 Utility 4 | . . . 4 Weapon 6 | . . . 6 Tool/Special . | . . . . Average Slot Usage (%) 87 | . 94 98 79 Engine 5 | . 4 . 7 Core 6 | . 9 14 2 Treads 5 | . 14 . . Wheel 17 | . 13 26 17 Device 10 | . 9 14 10 Storage 14 | . 14 14 14 Energy Gun 14 | . 12 . 19 Ballistic Gun 8 | . 15 28 . Launcher 2 | . . . 4 Impact Weapon 1 | . . . 2 Peak Build Rating 22 | 6 12 20 22 Average Rating 11 | 4 8 17 12 On Entrance 9 | . 6 12 20 Naked Turns . | . . . . Heaviest Build 92 | 13 90 90 92 Greatest Support 40 | 40 40 20 26 Greatest Overweight (x) 8 | . 8 4 8 Average Overweight (x) 3 | . 2 4 4 Largest Inventory Capacity 25 | 8 25 25 25 Average Capacity 21 | 7 17 25 25 Most Carried 23 | 4 21 22 23 Average Carried 16 | 2 10 21 21 Final Capacity 25 | 8 25 25 25 Final Carried 22 | 4 21 22 20 Class Distribution -------------------- 94% | Mutant 5% | Scavenger-Mutant Dominant Class ---------------- Mutant | -10/Materials Mutant | -10/Mines Mutant | -10/Subcaves Resources | -11 -10 -10 -10 ----------- Run | Yrd Mat Min Sub Matter Collected 665 | 250 200 73 142 Remotely 132 | . 132 . . Salvage Created 777 | . 426 107 244 Parts 47 | . 31 7 9 Haulers Intercepted 2 | . 2 . . Recyclers Shooed . | . . . . Parts Field Recycled . | . . . . Retrieved Matter . | . . . . Parts Self-Destructed . | . . . . Prevented . | . . . . Kills | -11 -10 -10 -10 ------- Run | Yrd Mat Min Sub Combat Hostiles Destroyed 20 | . 6 5 9 Guns 14 | . 6 5 3 AOE 5 | . . . 5 Classes Destroyed 7 | . 5 1 1 Worker 2 | . 2 . . Builder 1 | . 1 . . Hauler 2 | . 2 . . Recycler 1 | . 1 . . Swarmer 4 | . . 3 1 Grunt 8 | . 6 2 . Subdweller 8 | . . . 8 Best Kill Streak 3 | . 3 3 3 Combat Bots Only 3 | . 2 3 3 Max Kills in Single Turn 1 | . 1 1 1 Gunslinging . | . . . . Exploded 1 | . . . 1 Melee . | . . . . Uniques/NPCs Destroyed . | . . . . Combat | -11 -10 -10 -10 -------- Run | Yrd Mat Min Sub Hostile Shots Fired 108 | . 27 31 50 Missed 30 | . 7 7 16 Hits 78 | . 20 24 34 Projectile 78 | . 20 24 34 Critical Strikes 3 | . . 3 . Damage Taken 1369 | . 286 321 762 Core 250 | . 60 79 111 Absorbed by Shields . | . . . . Core Remaining (%) 100 | 100 . . . Volleys Fired 88 | 1 42 17 28 Largest 2 | 2 2 2 2 Hottest 90 | 90 90 40 90 Shots Fired 150 | 2 81 34 33 Gun 132 | 2 81 34 15 Cannon . | . . . . Launcher 18 | . . . 18 Special . | . . . . Kinetic 54 | . 20 34 . Thermal 63 | 2 61 . . Explosive 18 | . . . 18 Electromagnetic 15 | . . . 15 Robot Hit Streak 10 | . 8 5 10 Robot Miss Streak 6 | . 6 5 1 Penetration Max . | . . . . Secondary Targets 1 | . . 1 . Max Gunslinging Chain 1 | . . 1 . Shots Hit Robots 88 | . 48 17 23 Core Hits 53 | . 24 8 21 Critical Kills . | . . . . Critical Parts Destroyed . | . . . . Critical Strikes 1 | . 1 . . Burn 1 | . 1 . . Melee Attacks 9 | . . . 9 Impact 9 | . . . 9 Slashing . | . . . . Piercing . | . . . . Sneak Attacks . | . . . . Combat Hostiles . | . . . . Follow-up Attacks . | . . . . Damage Inflicted 1830 | . 588 230 1012 Guns 991 | . 588 230 173 Cannons . | . . . . Explosions 659 | . . . 659 Melee 180 | . . . 180 Ramming . | . . . . Kinetic 356 | . 126 230 . Thermal 462 | . 462 . . Explosive 659 | . . . 659 Electromagnetic 173 | . . . 173 Impact 180 | . . . 180 Slashing . | . . . . Piercing . | . . . . Highest Corruption 5 | . 5 5 5 Average Corruption 4 | . 4 5 5 Corruption Purged . | . . . . Corruption Blocked . | . . . . Effects 35 | . 1 5 29 Message Errors 10 | . 1 2 7 Matter Fused 5 | . . . 5 Heat Flow Errors 7 | . . 1 6 Energy Discharges 4 | . . 2 2 Parts Fused 1 | . . . 1 Data Loss (minor) 6 | . . . 6 Data Loss (major) 2 | . . . 2 Overload Shots . | . . . . Overflow Damage 3 | . . . 3 Projectiles . | . . . . Explosions 1 | . . . 1 Melee 2 | . . . 2 Knockbacks . | . . . . Impact . | . . . . Kinetic . | . . . . Secondary . | . . . . Self-Inflicted Damage 40 | . . . 40 Shots 1 | . . . 1 Rammed . | . . . . Targets Rammed . | . . . . Kicked . | . . . . Crushed . | . . . . Highest Temperature 264 | 15 264 102 201 Average Temperature 97 | 10 105 33 86 Received Heat Transfer 495 | . 162 216 117 Effects 3 | . 3 . . Interference 3 | . 3 . . Siege Activations . | . . . . Martial Activations . | . . . . Shielding Activations . | . . . . Robots Disrupted . | . . . . Combat Hostiles . | . . . . Robots Corrupted 1 | . . . 1 Combat Hostiles 1 | . . . 1 Parts Fried 4 | . . . 4 Impact Corruptions 1 | . . . 1 Robots Melted . | . . . . Combat Hostiles . | . . . . Parts Melted 1 | . 1 . . Heat Transferred 1301 | . 1301 . . Parts Sabotaged . | . . . . Parts Stolen . | . . . . Parts Stripped . | . . . . Power Chain Reactions . | . . . . Alert | -11 -10 -10 -10 ------- Run | Yrd Mat Min Sub Maximum Alert Level . | . . . . Low Security (%) 100 | 100 100 100 . Level 1 . | . . . . Level 2 . | . . . . Level 3 . | . . . . Level 4 . | . . . . Level 5 . | . . . . High Security . | . . . . Max Security . | . . . . Peak Influence 70 | . 54 70 . Initial . | . . . . Average 17 | . 18 20 . Influence Increases 370 | . 230 120 20 Destroy 0b10 Robot/C 240 | . 120 100 20 Destroy 0b10 Robot/NC 30 | . 30 . . Destroy Leader 54 | . 34 20 . Destroy Structure 1 | . 1 . . Lose Combat Pursuer 45 | . 45 . . Influence Decreases 350 | . 230 80 40 Entered New Map 21 | . . . 21 Time Decay 319 | . 230 70 19 Lost Part 10 | . . 10 . Squads Dispatched . | . . . . Investigation . | . . . . Extermination . | . . . . Reinforcement . | . . . . Assault . | . . . . Garrison . | . . . . Intercept . | . . . . Searches Triggered . | . . . . Construction Impeded . | . . . . Haulers Reinforced . | . . . . Active Scanning Responses . | . . . . Cargo Convoy Interrupts . | . . . . Stealth | -11 -10 -10 -10 --------- Run | Yrd Mat Min Sub Distress Signals . | . . . . Communications Jammed . | . . . . Distress Signals . | . . . . Times Spotted 28 | . 12 5 11 Peak Tracking Total 3 | . 2 3 2 Tactical Retreats 4 | . 3 . 1 Traps | -11 -10 -10 -10 ------- Run | Yrd Mat Min Sub Traps Triggered 5 | . 5 . . Indirectly . | . . . . Trap Hack Attempts . | . . . . Triggered . | . . . . Disarmed . | . . . . Reprogrammed . | . . . . Reused . | . . . . Traps Extracted . | . . . . Installed . | . . . . Triggered . | . . . . Machines | -11 -10 -10 -10 ---------- Run | Yrd Mat Min Sub Machines Disabled . | . . . . Max in Single Turn . | . . . . Machines Repaired . | . . . . Machines Dismantled . | . . . . Machines Sabotaged . | . . . . Overloaded Fab Kills . | . . . . Hacking | -11 -10 -10 -10 --------- Run | Yrd Mat Min Sub Machines Accessed 1 | . . . 1 Terminals . | . . . . Fabricators . | . . . . Repair Stations . | . . . . Recycling Units . | . . . . Scanalyzers . | . . . . Garrison Access . | . . . . Total Hacks 4 | . . . 4 Successful 4 | . . . 4 Failed . | . . . . Catastrophic . | . . . . Database Lockouts . | . . . . Manual . | . . . . Terminals . | . . . . Fabricators . | . . . . Repair Stations . | . . . . Recycling Units . | . . . . Scanalyzers . | . . . . Garrison Access . | . . . . Terminal Hacks 4 | . . . 4 Record 4 | . . . 4 Fabricator Hacks . | . . . . Repair Station Hacks . | . . . . Recycling Unit Hacks . | . . . . Scanalyzer . | . . . . Garrison Access Hacks . | . . . . Unauthorized Hacks . | . . . . Terminals . | . . . . Fabricators . | . . . . Repair Stations . | . . . . Recycling Units . | . . . . Scanalyzers . | . . . . Garrison Access . | . . . . Data Cores Recovered . | . . . . Used . | . . . . Hacking Detections . | . . . . Full Trace Events . | . . . . Feedback Events . | . . . . Feedback Blocked . | . . . . Robot Schematics Acquired . | . . . . Robots Built . | . . . . Authchips . | . . . . Time . | . . . . Total Robot Build Rating . | . . . . Part Schematics Acquired . | . . . . Parts Built . | . . . . Authchips . | . . . . Time . | . . . . Total Part Build Rating . | . . . . Parts Repaired . | . . . . Time . | . . . . Parts Recycled . | . . . . Recycled Matter . | . . . . Retrieved Matter . | . . . . Retrieved Components . | . . . . Parts Scanalyzed . | . . . . Part Schematics Acquired . | . . . . Parts Damaged . | . . . . Bothacking | -11 -10 -10 -10 ------------ Run | Yrd Mat Min Sub Used RIF Installer . | . . . . Robots Hacked . | . . . . Non-combat . | . . . . Combat . | . . . . Robot Hacks Applied . | . . . . Relay Couplers Released . | . . . . Fabnet Peak Effective % . | . . . . Robots Rewired . | . . . . Allies Hacked . | . . . . Hacks Repelled . | . . . . Allies | -11 -10 -10 -10 -------- Run | Yrd Mat Min Sub Total Allies . | . . . . Largest Group . | . . . . Highest-Rated Group . | . . . . Highest-Rated Ally . | . . . . Total Orders . | . . . . Ally Attacks . | . . . . Total Damage . | . . . . Kills . | . . . . Allies Corrupted . | . . . . Allies Melted . | . . . . Intel | -11 -10 -10 -10 ------- Run | Yrd Mat Min Sub Active Infowar (turns) 173 | . . 149 24 Sensors 173 | . . 149 24 Robot Analysis Total . | . . . . Derelict Logs Recovered 1 | . . . 1 Drone Launches . | . . . . Drone Recoveries . | . . . . Exploration | -11 -10 -10 -10 ------------- Run | Yrd Mat Min Sub Turns Passed 2420 | 120 831 229 1240 Spaces Moved 1295 | 68 422 121 684 Core 3 | 3 . . . Treads 225 | 65 160 . . Legs . | . . . . Wheels 1067 | . 262 121 684 Hover . | . . . . Flight . | . . . . Fastest Speed 50 | 50 140 140 135 Average Speed 158 | 155 154 140 165 Slowest Speed 320 | 160 320 140 200 Overloaded Moves . | . . . . Propulsion Burnouts . | . . . . Robots Hopped . | . . . . Potential Cave-ins . | . . . . Cave-ins Triggered . | . . . . Exploration Rate (%) 36 | 4 64 21 55 Regions Visited 3 Branch Regions 2 Pre-discovered Areas 1 | . . . 1 Known Exits Taken . | . . . . Unknown Exits Taken 3 | 1 1 1 . Scrap Searched 1 | . . 1 . Spaces Dug . | . . . . Terrain Destroyed 79 | . . . 79 Melee . | . . . . Projectile . | . . . . AOE 79 | . . . 79 Terrain Rammed . | . . . . Walls Destroyed . | . . . . Machines Disabled . | . . . . Actions | -11 -10 -10 -10 --------- Run | Yrd Mat Min Sub Total 1484 | 78 514 146 746 Wait 35 | . 21 5 9 Move 1292 | 67 421 120 684 Hop . | . . . . Pick Up 25 | 4 15 2 4 Fast Attach 9 | 6 3 . . Attach 7 | . . 1 6 Detach . | . . . . Swap 16 | . 10 1 5 Drop 2 | . 2 . . Fire 88 | 1 42 17 28 Melee 9 | . . . 9 Ram . | . . . . Kick . | . . . . Crush . | . . . . Escape Stasis . | . . . . Rewire 1 | . . . 1 Trap . | . . . . Miscellaneous . | . . . . Route ------- -11/Scrapyard -10/Materials (discovered 3 exits: [*Mat x2] / [*Min]) -10/Mines -10/Subcaves (discovered 2 exits: [*Mat x2]) History --------- Turn | Location | Event 14 | -11/Scrapyard | Discovered new exit (range 14) 121 | -11/Scrapyard | Entered Materials 312 | -10/Materials | Build established: Mutant 464 | -10/Materials | Discovered new exit (range 16) 775 | -10/Materials | Discovered new exit (range 16) 940 | -10/Materials | Discovered new exit (range 10) 952 | -10/Materials | Entered Mines 1029 | -10/Mines | Found a damaged Exp. Sensor Array with a note attached 1032 | -10/Mines | Found Prototype Device 1032 | -10/Mines | Identified Exp. Sensor Array 1122 | -10/Mines | Core integrity fell below 50% 1147 | -10/Mines | Assembled infested the area 1152 | -10/Mines | Assisted by a Guerilla fighting off Assembled 1164 | -10/Mines | Discovered new exit (range 8) 1181 | -10/Mines | Entered Subcaves 1182 | -10/Subcaves | Approached by a straggling Scientist 1220 | -10/Subcaves | Shifting Twisted Machinery released Mak. Kinetic Plating 1244 | -10/Subcaves | Shifting Twisted Machinery released Sub. Machine Gun 1316 | -10/Subcaves | Disturbed a concealed Subdweller 1465 | -10/Subcaves | Discovered new exit (range 14) 1775 | -10/Subcaves | A swath of the cavern ceiling suddenly collapsed 1869 | -10/Subcaves | Discovered new exit (range 15) 1957 | -10/Subcaves | Learned location of Zion (-7) 1957 | -10/Subcaves | Met a Zionite searching for "candidates" 2023 | -10/Subcaves | Ambushed by Subdweller buried in earth 2076 | -10/Subcaves | Core integrity fell below 20% 2118 | -10/Subcaves | Lost 3 parts (1p1n1u) 2216 | -10/Subcaves | Visited Clippyterm 2221 | -10/Subcaves | Learned Factory fabricator intel 2421 | -10/Subcaves | Destroyed by Y-45 Defender with Heavy Assault Rifle Last Messages --------------- 02221_ Connecting with Clippyterm... 02221_ Current location identified: Subcaves >>Record "Clippyterm" Welcome to Clippyterm v0.53, my misguided attempt to resurrect an ancient AI. I give up. There must be something fundamentally wrong with the algorithm, because no matter how much data I collect to feed it, half the time it still manages to suggest unhelpful sample queries and responses. --DD-NU8 >>Record "Authchips" It looks like you're interested in fabrication without breaking the rules, would you like help? Data stored: Factory fabricator intel. >>Record "Letterhead" It looks like you're writing a letter, sorry I don't know how to do that. >>Record! "Permadeath" It looks like you're defining "roguelike," quit while you're ahead. Please. 02279_ System corrupted: Component data lost. 02311_ System corrupted: Matter fused (-9). 02340_ System corrupted: Heat flow error (+211). 02355_ System corrupted: Component data lost. 02374_ System corrupted: Heat flow error (+121). 02411_ System corrupted: Component data lost. 02421_ S-10 Pest destroyed. Map ----- +----------------------------------------------------+ | ?????????????????????????????????????????????????? | | ?????????????????????????????????????????????????? | | ?????????????????????????????????????????????????? | | ?????????????????????????????????????????????????? | | ?????????????????????????????????????????????????? | | ?????????????????????????????????????????????????? | | ?????????????????????????????????????????????????? | | ?????????????????????????????????????????????????? | | ?????????????????????????????????????????????????? | | ???????????????????????????? ???????????????????? | | ??????????????????????????? ???????????????????? | | ??????????????????????????? ???????????????????? | | ??????????????????????????? ????????????????????? | | ??????????????????????????# ??????? ????????????? | | ?????????????????????????? ?????# ???????????? | | ???????????????????????### ##???# #???????????? | | ??????????????????????## #### #???????????? | | ?????????????????????? # ????????????? | | ??????????????????????? ??????????????? | | ??????????????????????? ????????????????? | | ???????????????????????? #?????????????????? | | ???????????????????????? Y #?????????????????? | | ????????????????????????#% #??????????????????? | | ???????????????????????## #???????????????????? | | ??????????????????????## #???????????????????? | | ??????????????????????# @ #???????????????????? | | ??????????????????????## #???????????????????? | | ???????????????????????# ##??????????????????? | | ???????????????????????# #??????????????????? | | ???????????????????????## #??????????????????? | | ????????????????????????# #??????????????????? | | ????????????????????????# #??????????????????? | | ????????????????????????### ##????##???????????? | | ????###???????#####???????# ##??# ##??????????? | | ???## ######### #???????# ### #??????????? | | ??## # ## #???????# #??????????? | | ### % ##??????# ##??????????? | | # ######## ##???????????? | | # ## ## ##????????????? | | # & ##### ## ##?????????????? | | ## ##???## ## #### ##??????????????? | | # #?????##### #####?## #???????????????? | | ## #####????????# #???### #???????????????? | | #### #???????????# ##???# ##???????????????? | | ???# #??????????### #???# ##????????????????? | | ???# #?????????????##???### #?????????????????? | | #??### ##????????????????????###?????????????????? | | ##????##?????????????????????????????????????????? | | ##??????????????????????????????????????????????? | | #??????????????????????????????????????????????? | +----------------------------------------------------+ Best States ------------- Heat Dissipation 39 Energy Generation 14 Energy Capacity 250 Matter Stores 300 Matter Capacity 300 Sight Range 16 Robot Scan Range 20 Terrain Scan Density 10 Evasion (%) 40 Recoil Reduction 2 Item Schematics ----------------- None Robot Schematics ------------------ None Fabricated ------------ Nothing Repaired ---------- Nothing Alien Tech Used ----------------- None Achievements -------------- Use The Force Challenges ------------ None Game ------ Seed MolecularFissionBay Manual? 0 Play Time 00:16:15 Cumulative 38.8 hours Start 2025.10.12 @ 20:37:24 End 2025.10.12 @ 20:50:22 Sessions 1 Manual Loads 0 Difficulty Rogue Special Mode None Game No. 95 Rogue 88 Adventurer 7 Explorer 0 Win Type - Total 1 Types 1/0/0/0/0/0/0/0/0/0 Lore% 9 Gallery% 31 Achievement% 32 Wizard Run 0 Options --------- Layout 0 ASCII 0 Keyboard 1 Movement Vi Keybinds 0 Fullscreen 1 Font 18/SmallcapsGlow Map View 112x50 Zoom Use 15% Tactical HUD 1 Map Filters NONE Filters NONE Steam 1 RUN: 6a1f7776-9d1f-41d6-9dfa-249c7c952b4b